Cogmind - Beta 16.1 @@@ ROGUE MODE // 2026.06.21 @ 15:59:08 Player: Conwew Result: Destroyed by YI-UF0 with YI-UF0's Doublenader Performance ------------- Evolutions (0) 0 Regions Visited (4) 800 Robots Destroyed (21) 105 Value Destroyed (525) 525 Prototype IDs (24) 480 Alien Tech Used (0) 0 Bonus (35) 35 TOTAL SCORE: 1945 Bonus ------- Follower Combat Kills 35 Cogmind --------- Core Integrity 0/250 Matter 300/300 Energy 99/100 System Corruption 0% Temperature Cool (0) Movement Core (150) Ox2 Location -9/Mines Parts ------- > --- POWER (1) -------- (None) > --- PROPULSION (2) --- (None) > --- UTILITY (2) ------ Experimental Sensor Array > --- WEAPON (2) ------- Field Lobotomy Kit > --- INVENTORY (5) ---- Scrap Suit Decoy Drone Bay Small Laser Peak State ------------ > --- POWER ------------ Ion Engine > --- PROPULSION ------- Aluminum Leg Aluminum Leg > --- UTILITY ---------- Improved Heat Sink Experimental Sensor Array > --- WEAPON ----------- Medium Laser Field Lobotomy Kit > --- INVENTORY -------- Scrap Suit Decoy Drone Bay Small Laser [Rating: 28] Favorites ----------- Power Ion Engine Engine Ion Engine Propulsion Aluminum Leg Leg Aluminum Leg Wheel Compact Wheel Utility Power Shielding Device Experimental Sensor Array Protection Power Shielding Weapon Medium Laser Energy Gun Medium Laser Special Weapon Field Lobotomy Kit Build | -11 -10 -10 -10 -9 ------- Run | Yrd Mat Min Exi Min Slots Evolved . | . . . . . Power . | . . . . . Propulsion . | . . . . . Utility . | . . . . . Weapon . | . . . . . Parts Attached 20 | 5 9 5 . 1 Power 4 | 1 2 1 . . Engine 4 | 1 2 1 . . Core . | . . . . . Reactor . | . . . . . Propulsion 7 | 2 3 2 . . Treads . | . . . . . Leg 5 | . 3 2 . . Wheel 2 | 2 . . . . Hover . | . . . . . Flight . | . . . . . Utility 4 | . 2 2 . . Device 2 | . . 2 . . Storage . | . . . . . Processor . | . . . . . Hackware . | . . . . . Protection 2 | . 2 . . . Artifact . | . . . . . Weapon 5 | 2 2 . . 1 Energy Gun 4 | 2 2 . . . Energy Cannon . | . . . . . Ballistic Gun . | . . . . . Ballistic Cannon . | . . . . . Launcher . | . . . . . Special Weapon 1 | . . . . 1 Impact Weapon . | . . . . . Slashing Weapon . | . . . . . Piercing Weapon . | . . . . . Special Melee Weapon . | . . . . . Unidentified Prototypes 1 | . . 1 . . Parts Lost 4 | . . . . 4 Power 1 | . . . . 1 Propulsion 2 | . . . . 2 Utility 1 | . . . . 1 Weapon . | . . . . . Highest Loss Streak 4 | . . . . 4 To Critical Strikes . | . . . . . Average Backups 2 | . 1 3 2 3 Power . | . . . . . Propulsion . | . . . . . Utility 1 | . . 2 2 2 Weapon . | . . . . . Tool/Special . | . . . . . Unused Backups 7 | . . 5 . 2 Power . | . . . . . Propulsion 1 | . . 1 . . Utility 4 | . . 2 . 2 Weapon 2 | . . 2 . . Tool/Special . | . . . . . Average Slot Usage (%) 94 | . 87 100 100 90 Engine 13 | . 14 14 14 11 Leg 23 | . 16 28 28 25 Wheel 4 | . 11 . . . Device 10 | . . 3 28 25 Protection 13 | . 16 24 . . Energy Gun 27 | . 27 28 28 16 Peak Build Rating 28 | 5 7 19 20 28 Average Rating 11 | 3 6 9 19 25 On Entrance 10 | . 5 7 19 20 Avg Prop Armor Cover (%) . | . . . . . Naked Turns . | . . . . . Heaviest Build 17 | 8 10 10 10 17 Greatest Support 26 | 26 26 20 20 20 Greatest Overweight (x) 2 | . . . . 2 Average Overweight (x) . | . . . . . Largest Inventory Capacity 5 | 5 5 5 5 5 Average Capacity 5 | 5 5 5 5 5 Most Carried 5 | . 5 5 5 5 Average Carried 3 | . 1 4 4 5 Final Capacity 5 | 5 5 5 5 5 Final Carried 5 | . 4 4 5 5 Class Distribution -------------------- 87% | Mutant 12% | Scavenger-Mutant Dominant Class ---------------- Mutant | -10/Materials Mutant | -10/Mines Mutant | -10/Exiles Mutant | -9/Mines Resources | -11 -10 -10 -10 -9 ----------- Run | Yrd Mat Min Exi Min Matter Collected 490 | 181 249 50 . 10 Remotely . | . . . . . Salvage Created 620 | . 464 125 . 31 Parts 33 | . 20 12 . 1 Haulers Intercepted . | . . . . . Recyclers Shooed 2 | . . 2 . . Parts Field Recycled . | . . . . . Retrieved Matter . | . . . . . Parts Self-Destructed . | . . . . . Prevented . | . . . . . Parts Restored . | . . . . . Kills | -11 -10 -10 -10 -9 ------- Run | Yrd Mat Min Exi Min Combat Hostiles Destroyed 19 | . 12 5 . 2 Guns 19 | . 12 5 . 2 Classes Destroyed 4 | . 4 . . . Operator 1 | . 1 . . . Watcher 1 | . 1 . . . Swarmer 8 | . 3 3 . 2 Grunt 11 | . 9 2 . . Best Kill Streak 5 | . 5 3 . 1 Combat Bots Only 5 | . 5 3 . 1 Max Kills in Single Turn 2 | . 2 2 . 1 Gunslinging 1 | . 1 1 . . Exploded . | . . . . . Melee . | . . . . . Uniques/NPCs Destroyed . | . . . . . Combat | -11 -10 -10 -10 -9 -------- Run | Yrd Mat Min Exi Min Hostile Shots Fired 127 | . 48 27 . 52 Missed 35 | . 11 9 . 15 Hits 92 | . 37 18 . 37 Melee 1 | . . . . 1 Projectile 91 | . 37 18 . 36 AOE 4 | . . . . 4 Critical Strikes 1 | . 1 . . . Damage Taken 1142 | . 427 185 . 530 Core 277 | . 88 8 . 181 Absorbed by Shields . | . . . . . Redirected to Shielding 63 | . 38 25 . . Regen/Repaired (Parts) 53 | . 53 . . . Core Remaining (%) 100 | 100 . . . . Volleys Fired 77 | . 47 18 . 12 Largest 2 | . 2 2 . 1 Hottest 90 | . 90 90 . 50 Shots Fired 142 | . 94 36 . 12 Gun 139 | . 94 36 . 9 Cannon . | . . . . . Launcher . | . . . . . Special 3 | . . . . 3 Kinetic . | . . . . . Thermal 139 | . 94 36 . 9 Explosive . | . . . . . Electromagnetic . | . . . . . Robot Hit Streak 11 | . 7 6 . 11 Robot Miss Streak 8 | . 4 8 . 5 Penetration Max . | . . . . . Secondary Targets 4 | . 3 1 . . Max Gunslinging Chain 1 | . 1 1 . . Shots Hit Robots 85 | . 58 20 . 7 Core Hits 38 | . 27 9 . 2 Critical Kills . | . . . . . Critical Parts Destroyed . | . . . . . Critical Strikes 6 | . 5 . . 1 Burn 6 | . 5 . . 1 Melee Attacks . | . . . . . Impact . | . . . . . Slashing . | . . . . . Piercing . | . . . . . Sneak Attacks . | . . . . . Combat Hostiles . | . . . . . Follow-up Attacks . | . . . . . Damage Inflicted 996 | . 708 238 . 50 Guns 996 | . 708 238 . 50 Cannons . | . . . . . Explosions . | . . . . . Melee . | . . . . . Ramming . | . . . . . Kinetic . | . . . . . Thermal 996 | . 708 238 . 50 Explosive . | . . . . . Electromagnetic . | . . . . . Impact . | . . . . . Slashing . | . . . . . Piercing . | . . . . . Highest Corruption . | . . . . . Average Corruption . | . . . . . Corruption Purged . | . . . . . Corruption Blocked . | . . . . . Overload Shots . | . . . . . Overflow Damage . | . . . . . Projectiles . | . . . . . Explosions . | . . . . . Melee . | . . . . . Knockbacks . | . . . . . Impact . | . . . . . Kinetic . | . . . . . Secondary . | . . . . . Self-Inflicted Damage . | . . . . . Shots . | . . . . . Rammed . | . . . . . Targets Rammed . | . . . . . Kicked . | . . . . . Crushed . | . . . . . Highest Temperature 370 | . 370 240 . . Average Temperature 118 | . 123 102 . . Received Heat Transfer 309 | . 246 57 . 6 Effects 3 | . 3 . . . Shutdowns 1 | . 1 . . . Energy Bleed 1 | . 1 . . . Matter Decay 1 | . 1 . . . Siege Activations . | . . . . . Martial Activations . | . . . . . Shielding Activations . | . . . . . Robots Disrupted . | . . . . . Combat Hostiles . | . . . . . Robots Corrupted . | . . . . . Combat Hostiles . | . . . . . Parts Fried . | . . . . . Impact Corruptions . | . . . . . Robots Melted . | . . . . . Combat Hostiles . | . . . . . Parts Melted 1 | . 1 . . . Heat Transferred 3061 | . 2231 608 . 222 Parts Sabotaged . | . . . . . Parts Stolen . | . . . . . Parts Stripped . | . . . . . Power Chain Reactions . | . . . . . Alert | -11 -10 -10 -10 -9 ------- Run | Yrd Mat Min Exi Min Maximum Alert Level . | . . . . . Low Security (%) 100 | 100 100 100 . 100 Level 1 . | . . . . . Level 2 . | . . . . . Level 3 . | . . . . . Level 4 . | . . . . . Level 5 . | . . . . . High Security . | . . . . . Max Security . | . . . . . Peak Influence 155 | . 155 120 . 122 Initial 25 | . . 25 . . Average 48 | . 67 28 . 40 Influence Increases 801 | . 397 180 . 224 Destroy 0b10 Robot/C 480 | . 240 100 . 140 Destroy 0b10 Robot/NC 10 | . 10 . . . Destroy Leader 112 | . 72 20 . 20 Allied During Kill 8 | . . . . 8 Destroy Structure 41 | . . . . 41 Lose Combat Pursuer 150 | . 75 60 . 15 Influence Decreases 719 | . 332 220 25 142 Entered New Map 65 | . . 40 25 . Time Decay 569 | . 332 180 . 57 Lost Part 40 | . . . . 40 Lost Ally 45 | . . . . 45 Squads Dispatched 5 | . 4 . . 1 Investigation 2 | . 2 . . . Extermination . | . . . . . Reinforcement 3 | . 2 . . 1 Assault . | . . . . . Garrison . | . . . . . Intercept . | . . . . . Searches Triggered . | . . . . . Construction Impeded 1 | . . . . 1 Haulers Reinforced . | . . . . . Active Scanning Responses . | . . . . . Cargo Convoy Interrupts . | . . . . . Stealth | -11 -10 -10 -10 -9 --------- Run | Yrd Mat Min Exi Min Distress Signals . | . . . . . Communications Jammed . | . . . . . Distress Signals . | . . . . . Times Spotted 48 | . 26 8 . 14 Peak Tracking Total 8 | . 4 3 . 8 Tactical Retreats 6 | . 3 2 . 1 Traps | -11 -10 -10 -10 -9 ------- Run | Yrd Mat Min Exi Min Traps Triggered 1 | . 1 . . . Indirectly . | . . . . . Trap Hack Attempts . | . . . . . Triggered . | . . . . . Disarmed . | . . . . . Reprogrammed . | . . . . . Reused . | . . . . . Traps Extracted . | . . . . . Installed . | . . . . . Triggered . | . . . . . Machines | -11 -10 -10 -10 -9 ---------- Run | Yrd Mat Min Exi Min Machines Disabled . | . . . . . Max in Single Turn . | . . . . . Machines Repaired . | . . . . . Machines Dismantled . | . . . . . Machines Sabotaged . | . . . . . Overloaded Fab Kills . | . . . . . Hacking | -11 -10 -10 -10 -9 --------- Run | Yrd Mat Min Exi Min Machines Accessed 5 | . 2 1 2 . Terminals 1 | . 1 . . . Fabricators . | . . . . . Repair Stations 1 | . 1 . . . Recycling Units . | . . . . . Scanalyzers . | . . . . . Garrison Access . | . . . . . Total Hacks 12 | . 6 1 5 . Successful 10 | . 4 1 5 . Failed 2 | . 2 . . . Catastrophic . | . . . . . Database Lockouts . | . . . . . Manual 3 | . 2 . 1 . Terminals 3 | . 3 . . . Fabricators . | . . . . . Repair Stations 3 | . 3 . . . Recycling Units . | . . . . . Scanalyzers . | . . . . . Garrison Access . | . . . . . Terminal Hacks 8 | . 2 1 5 . Record 4 | . . . 4 . Open Door 1 | . . 1 . . Alert Level 1 | . 1 . . . Locate Traps 1 | . 1 . . . Proto ID Catalog 1 | . . . 1 . Fabricator Hacks . | . . . . . Repair Station Hacks 2 | . 2 . . . Scan Component 1 | . 1 . . . Repair 1 | . 1 . . . Recycling Unit Hacks . | . . . . . Scanalyzer . | . . . . . Garrison Access Hacks . | . . . . . Unauthorized Hacks . | . . . . . Terminals . | . . . . . Fabricators . | . . . . . Repair Stations . | . . . . . Recycling Units . | . . . . . Scanalyzers . | . . . . . Garrison Access . | . . . . . Data Cores Recovered . | . . . . . Used . | . . . . . Hacking Detections 2 | . 2 . . . Full Trace Events 1 | . 1 . . . Feedback Events . | . . . . . Feedback Blocked . | . . . . . Robot Schematics Acquired . | . . . . . Robots Built . | . . . . . Authchips . | . . . . . Time . | . . . . . Total Robot Build Rating . | . . . . . Part Schematics Acquired . | . . . . . Parts Built . | . . . . . Authchips . | . . . . . Time . | . . . . . Total Part Build Rating . | . . . . . Part Studies Acquired . | . . . . . Parts Repaired 1 | . 1 . . . Time 26 | . 26 . . . Parts Recycled . | . . . . . Recycled Matter . | . . . . . Retrieved Matter . | . . . . . Retrieved Components . | . . . . . Parts Scanalyzed . | . . . . . Part Schematics Acquired . | . . . . . Parts Damaged . | . . . . . Bothacking | -11 -10 -10 -10 -9 ------------ Run | Yrd Mat Min Exi Min Used RIF Installer . | . . . . . Robots Hacked . | . . . . . Non-combat . | . . . . . Combat . | . . . . . Robot Hacks Applied . | . . . . . Relay Couplers Released . | . . . . . Fabnet Peak Effective % . | . . . . . Robots Rewired . | . . . . . Allies Hacked . | . . . . . Hacks Repelled . | . . . . . Allies | -11 -10 -10 -10 -9 -------- Run | Yrd Mat Min Exi Min Total Allies 3 | . . . . 3 Largest Group 2 | . . . . 2 Highest-Rated Group 68 | . . . . 68 Highest-Rated Ally 34 | . . . . 34 Total Orders . | . . . . . Ally Attacks 19 | . . . . 19 Total Damage 934 | . . . . 934 Kills 16 | . . . . 16 Allies Corrupted . | . . . . . Allies Melted . | . . . . . Field Lobotomies 3 | . . . . 3 Intel | -11 -10 -10 -10 -9 ------- Run | Yrd Mat Min Exi Min Active Infowar (turns) 944 | . . 84 711 149 Sensors 944 | . . 84 711 149 Robot Analysis Total . | . . . . . Derelict Logs Recovered 2 | . . 2 . . Drone Launches . | . . . . . Drone Recoveries . | . . . . . Exploration | -11 -10 -10 -10 -9 ------------- Run | Yrd Mat Min Exi Min Turns Passed 2538 | 35 933 710 711 149 Spaces Moved 1825 | 32 595 528 592 78 Core 9 | 3 . . . 6 Treads . | . . . . . Legs 1539 | . 347 528 592 72 Wheels 277 | 29 248 . . . Hover . | . . . . . Flight . | . . . . . Fastest Speed 50 | 50 90 120 120 120 Average Speed 115 | 85 107 120 120 127 Slowest Speed 190 | 90 120 120 120 190 Overloaded Moves . | . . . . . Propulsion Burnouts . | . . . . . Robots Hopped . | . . . . . Potential Cave-ins . | . . . . . Cave-ins Triggered . | . . . . . Exploration Rate (%) 55 | 3 75 95 91 13 Regions Visited 4 Branch Regions 3 Pre-discovered Areas 2 | . . 1 1 . Known Exits Taken 1 | . . 1 . . Unknown Exits Taken 3 | 1 1 . 1 . Scrap Searched 2 | . . 1 . 1 Spaces Dug . | . . . . . Terrain Destroyed . | . . . . . Melee . | . . . . . Projectile . | . . . . . AOE . | . . . . . Terrain Rammed . | . . . . . Walls Destroyed . | . . . . . Machines Disabled . | . . . . . Actions | -11 -10 -10 -10 -9 --------- Run | Yrd Mat Min Exi Min Total 2105 | 36 792 572 592 113 Wait 158 | . 129 8 . 21 Move 1821 | 31 594 527 591 78 Hop . | . . . . . Pick Up 9 | . 4 4 1 . Fast Attach 10 | 5 4 1 . . Attach 1 | . . 1 . . Detach . | . . . . . Swap 11 | . 7 3 . 1 Drop 18 | . 7 10 . 1 Fire 77 | . 47 18 . 12 Melee . | . . . . . Ram . | . . . . . Kick . | . . . . . Crush . | . . . . . Escape Stasis . | . . . . . Rewire . | . . . . . Trap . | . . . . . Miscellaneous . | . . . . . Route ------- -11/Scrapyard -10/Materials (discovered 4 exits: [*Mat x2] / *Min x2) -10/Mines (discovered 3 exits: [*Mat] / *Exi / [*Sub]) -10/Exiles (discovered 2 exits: [*Min x2]) -9/Mines History --------- Turn | Location | Event 7 | -11/Scrapyard | Discovered new exit (range 15) 36 | -11/Scrapyard | Entered Materials 299 | -10/Materials | Discovered new exit (range 3) 306 | -10/Materials | Build established: Mutant 502 | -10/Materials | Repaired Med. Laser 567 | -10/Materials | Discovered new exit (range 15) 719 | -10/Materials | Build established: Scavenger-Mutant 729 | -10/Materials | Discovered new exit (range 14) 833 | -10/Materials | Discovered new exit (range 12) 969 | -10/Materials | Entered Mines 972 | -10/Mines | Discovered new exit (range 4) 973 | -10/Mines | Learned location of Storage (-9) 1019 | -10/Mines | Build established: Mutant 1064 | -10/Mines | Learned Materials emergency access door positions 1067 | -10/Mines | Found the Drone Emporium 1072 | -10/Mines | Found Prototype Device 1139 | -10/Mines | Found a Scrap Suit stashed away for nefarious purposes 1143 | -10/Mines | Found Scrap Suit 1156 | -10/Mines | Discovered new exit (range 10) 1504 | -10/Mines | Identified exit to Exiles 1566 | -10/Mines | Found a damaged Exp. Sensor Array with a note attached 1569 | -10/Mines | Found Prototype Device 1595 | -10/Mines | Identified Exp. Sensor Array 1673 | -10/Mines | Deemed a non-threat by the Exiles lab entrance 1679 | -10/Mines | Entered Exiles 1679 | -10/Exiles | Found Exiles lab destroyed 1943 | -10/Exiles | Learned location of Zion (-6) 2029 | -10/Exiles | Opened EX-Vault 2033 | -10/Exiles | Found Field Lobotomy Kit 2234 | -10/Exiles | Discovered new exit (range 14) 2368 | -10/Exiles | Discovered new exit (range 15) 2390 | -10/Exiles | Entered Mines 2397 | -9/Mines | Assembled infested the area 2424 | -9/Mines | Assimilated D-53 Grenadier with FLK Orb 2427 | -9/Mines | Core integrity fell below 50% 2427 | -9/Mines | Assimilated D-53 Grenadier with FLK Orb 2507 | -9/Mines | Assimilated G-34 Mercenary with FLK Orb 2538 | -9/Mines | Core integrity fell below 20% 2539 | -9/Mines | Destroyed by YI-UF0 with YI-UF0's Doublenader Last Messages --------------- K-01 Serf destroyed. The unstable cave ceiling collapses. U-05 Engineer lays Concrete. Aluminum Leg destroyed. as-40743 suffers critical hit (Destroy). as-40743 destroyed. U-05 Engineer builds a Wall. G-34 Mercenary assimilated. Imp. Heat Sink destroyed. Ion Engine destroyed. S-10 Pest destroyed. U-05 Engineer lays Concrete. S-10 Pest destroyed. R-06 Scavenger destroyed. Dropped Med. Laser. Aluminum Leg destroyed. as-53635 sneak attacks. U-05 Engineer destroyed. YI-UF0: "BADABOOM!" as-53635 destroyed. Map ----- +----------------------------------------------------+ | ?????????????????????????????????????????????????? | | ?????????????????????????????????????????????????? | | ?????????????????????????????????????????????????? | | ?????????????????????????????????????????????????? | | ?????????????????????????????????????????????????? | | ?????????????????????????????????????????????????? | | ?????????????????????????????????????????????????? | | ?????????????????????????????????????????????????? | | ?????????????????????????????????????????????????? | | ?????????????????????????????????????????????????? | | ?????????????????????????????????????????????????? | | ?????????????????????????????????????????????????? | | ??????????????????????????? ?????????????????????? | | ??????????????????????????? ?????????????????????? | | ??????????????????????????? #????????????????????? | | ??????????????????????????? #?####???????????????? | | ??????????????????????????? # ????????????????? | | ???????????????????????????k# ?????????????????? | | ??????????????????????????? # t#?????????????????? | | ?????????????????????????## # #?????????????????? | | ????????????????????????## #?????????????????? | | ???????????????????????## #?????????????????? | | ???????????????????????# g #??????????????????? | | ??????????????????????## #??????????????????? | | ??????????????????###?# #??????????????????? | | ?????????????????## ##?# @ #???????????????????? | | ????????????????## #?# ##???????????????????? | | ???????????????## #?# #???????????????????? | | ???????????????# ]### ##???????????????????? | | ???????????????# %! ### ????????????????????? | | ???????????????# # ## ##???????????????????? | | ???????????????# #### % #????????????????????? | | ???????????????# #[%?? aa| #????????????????????? | | ???????????????# % *#### ##????????????????????? | | ??????????????# # ####?????????????????????? | | ??????????????# #????????????????????????? | | ??????????????# ## #????????????????????????? | | ??????????????## ! ##????????????????????????? | | ???????????????# =%?%*# ????????????????????????? | | ???????????????# # =#% ???????????????????????? | | ???????????????# !%! ??????????????????????? | | ???????????????# | ?????????????????????? | | ??????????????# =????????????????????? | | ?????????????? [???????????????????? | | ????????????? # ???????????????????? | | ??????????????[ % ## ????????????????????? | | ?????????????#% % #??#?????????????????????? | | ??????????????? ###????????????????????????? | | ???????????????? #??????????????????????????? | | ????????????????? ##??????????????????????????? | +----------------------------------------------------+ Best States ------------- Heat Dissipation 39 Energy Generation 10 Energy Capacity 250 Matter Stores 300 Matter Capacity 300 Sight Range 16 Robot Scan Range 20 Terrain Scan Density 10 Power Shielding 33 Weapon Shielding 33 Evasion (%) 55 Item Schematics ----------------- None Robot Schematics ------------------ None Fabricated ------------ Nothing Repaired ---------- Med. Laser | 24% | -10/Materials Studied --------- None Alien Tech Used ----------------- None Achievements -------------- None Challenges ------------ None Game ------ Seed ShockPointNanovents Manual? 0 Play Time 00:18:52 Cumulative 32.9 hours Start 2026.06.21 @ 15:42:30 End 2026.06.21 @ 15:59:08 Sessions 1 Manual Loads 0 Difficulty Rogue Special Mode None Game No. 35 Rogue 35 Adventurer 0 Explorer 0 Win Type - Total 0 Types 0/0/0/0/0/0/0/0/0/0 Lore% 46 Gallery% 29 Achievement% 23 Wizard Run 0 Options --------- Layout 1 ASCII 0 Keyboard 0 Movement Mouse Keybinds 0 Fullscreen 1 Font 24/X11 Map View 50x35 Zoom Use 0% Tactical HUD 0 Map Filters NONE Filters NONE Steam 1 RUN: 61ac8058-8126-4074-9326-1606c3bf862d